bitfinex/quotes_BTCUSD_20260311
["timestamp","ask_amount","ask_price","bid_price","bid_amount"]
[1773239488091,0.07071535,70706.0,70681.0,1e-08]
[1773239488415,0.08398049,70705.0,70681.0,1e-08]
[1773239488617,0.08398049,70705.0,70682.0,0.13820764]
[1773239488816,0.00148,70704.0,70683.0,0.13819903]
[1773239489015,0.00148,70704.0,70681.0,1e-08]
[1773239489216,0.00148,70704.0,70676.0,0.11120279]
[1773239489422,0.00148,70704.0,70675.0,0.11120279]
[1773239489619,0.00148,70703.0,70676.0,0.11120279]
[1773239490003,0.00148,70703.0,70677.0,0.11120279]
[1773239490206,0.07219935,70702.0,70678.0,0.18194616]
[1773239490520,0.07219935,70702.0,70678.0,0.18342616]
[1773239490727,0.41738639,70709.0,70679.0,0.11120279]
[1773239490896,0.00148,70708.0,70685.0,0.11120279]
[1773239491099,0.07070935,70714.0,70685.0,0.11120279]
[1773239491100,0.00148,70716.0,70690.0,0.11120279]
[1773239491299,0.00148,70716.0,70682.0,0.35605078]
[1773239491300,0.00148,70715.0,70691.0,0.00148]
[1773239491534,0.00148,70714.0,70691.0,0.00148]
[1773239491736,0.08398049,70726.0,70691.0,0.00148]
[1773239491941,0.08398049,70724.0,70687.0,0.00148]
[1773239492151,0.19952024,70708.0,70685.0,0.11120279]
[1773239492361,0.00148,70707.0,70686.0,0.11120279]
[1773239492581,0.00148,70707.0,70685.0,0.18193861]
[1773239492740,0.07071235,70709.0,70688.0,0.11120279]
[1773239492940,0.070708,70714.0,70690.0,0.19143161]
[1773239493279,0.00148,70713.0,70691.0,0.11268279]
[1773239493411,0.00148,70714.0,70692.0,0.19143161]
[1773239493618,0.00148,70714.0,70693.0,0.11120279]
[1773239493872,0.00148,70714.0,70694.0,0.08022882]
[1773239494023,0.00148,70714.0,70695.0,0.08022882]
[1773239494228,0.00148,70714.0,70696.0,0.07072535]
[1773239494522,0.00148,70721.0,70696.0,0.18192814]
[1773239494723,0.07068536,70736.0,70696.0,0.18192814]
[1773239494926,0.00148,70735.0,70698.0,0.08022882]
[1773239495126,0.1259103,70730.0,70697.0,0.11120279]
[1773239495325,0.00148,70735.0,70698.0,0.11120279]
[1773239495581,0.00148,70735.0,70699.0,0.11120279]
[1773239495779,0.00148,70735.0,70700.0,0.19143161]
[1773239496325,0.00148,70734.0,70702.0,0.07071935]
[1773239496527,0.00148,70734.0,70701.0,0.07219935]
[1773239496528,0.08546049,70734.0,70701.0,0.07220034]
[1773239496734,0.1259103,70720.0,70691.0,0.0002]
[1773239496938,0.1259103,70711.0,70688.0,0.11120279]
[1773239497107,0.00148,70710.0,70688.0,0.11120279]
[1773239497403,0.18689114,70709.0,70688.0,0.11120279]
[1773239497605,0.26939163,70717.0,70691.0,0.11116016]
[1773239497761,0.26939163,70717.0,70690.0,0.11116016]
[1773239497967,0.26939163,70717.0,70685.0,0.23941711]
[1773239497968,0.08398049,70709.0,70685.0,0.16868095]
[1773239498177,0.08398049,70709.0,70683.0,0.0002]
[1773239498375,0.07219335,70708.0,70683.0,0.0002]
[1773239499315,0.08398049,70707.0,70683.0,0.0002]
[1773239499929,0.00148,70706.0,70683.0,0.0002]
[1773239500259,0.07070625,70716.0,70685.0,0.07073636]
[1773239500544,0.00148,70715.0,70685.0,0.07073636]
[1773239501284,0.00148,70715.0,70685.0,0.23941731]
[1773239501489,0.00148,70715.0,70685.0,0.07073636]
[1773239501669,0.0816741,70709.0,70679.0,0.16665273]
[1773239501972,0.0816741,70709.0,70675.0,0.07074541]
[1773239502173,0.0816741,70709.0,70673.0,0.0002]
[1773239502329,0.1259103,70710.0,70673.0,1e-08]
[1773239502330,0.07073236,70689.0,70673.0,1e-08]
[1773239502672,0.00148,70688.0,70673.0,1e-08]
[1773239504232,0.00148,70688.0,70675.0,0.0002]
[1773239504432,0.07073436,70687.0,70675.0,0.0002]
[1773239505324,0.07073436,70687.0,70668.0,0.0002]
[1773239505525,0.07073436,70687.0,70665.0,0.21161019]
[1773239505526,0.1259103,70680.0,70665.0,0.000759]
[1773239505771,0.00148,70679.0,70665.0,0.000759]
[1773239505979,0.00148,70679.0,70661.0,0.21085119]
[1773239506174,0.0816741,70678.0,70650.0,0.07225085]
[1773239506353,0.07074437,70677.0,70650.0,0.07225085]
[1773239506604,0.00148,70676.0,70651.0,0.34406449]
[1773239506802,0.07074437,70677.0,70651.0,0.34406449]
[1773239507004,0.00148,70675.0,70651.0,0.34406449]
[1773239507208,0.00148,70675.0,70650.0,0.07225085]
[1773239507410,0.00148,70675.0,70648.0,0.0722514]
[1773239507822,0.00148,70675.0,70643.0,0.01124]
[1773239507987,0.1259103,70670.0,70643.0,0.08201801]
[1773239508187,0.1259103,70670.0,70643.0,0.08201772]
[1773239508411,0.07075338,70668.0,70643.0,0.08201772]
[1773239508752,0.1259103,70660.0,70643.0,0.01124]
[1773239508954,0.1259103,70660.0,70630.0,0.00148]
[1773239509078,0.0831541,70659.0,70623.0,0.34406449]
[1773239509276,0.1259103,70650.0,70623.0,0.07079837]
[1773239509629,0.0831541,70649.0,70612.0,0.0002]
[1773239509778,0.0831541,70649.0,70619.0,0.07080225]
[1773239509979,0.1259103,70640.0,70618.0,0.0002]
[1773239510185,0.1259103,70640.0,70618.0,1e-08]
[1773239510186,0.00148,70639.0,70618.0,1e-08]
[1773239510385,0.07079245,70629.0,70610.0,1e-08]
[1773239510635,0.00148,70628.0,70610.0,0.0708105]
[1773239510814,0.00148,70627.0,70610.0,0.0708105]
[1773239511013,0.07078407,70638.0,70610.0,0.0708105]
[1773239511210,0.00148,70637.0,70610.0,0.0708105]
[1773239511590,0.00148,70637.0,70610.0,1e-08]
[1773239511591,0.1259103,70630.0,70610.0,1e-08]
[1773239511752,0.07078407,70638.0,70610.0,1e-08]
[1773239511753,0.00148,70629.0,70610.0,1e-08]
[1773239511972,0.00148,70628.0,70610.0,1e-08]
[1773239512383,0.07078407,70638.0,70610.0,1e-08]
[1773239512567,0.00148,70637.0,70610.0,1e-08]
[1773239513528,0.08358065,70629.0,70610.0,1e-08]
[1773239513729,0.00148,70628.0,70610.0,1e-08]
[1773239514359,0.07079445,70627.0,70610.0,1e-08]
[1773239515496,0.07079445,70627.0,70605.0,1e-08]
[1773239515785,0.1259103,70620.0,70605.0,1e-08]
[1773239515943,0.08358065,70626.0,70605.0,1e-08]
[1773239516167,0.00148,70625.0,70605.0,1e-08]
[1773239516359,0.07079746,70624.0,70605.0,1e-08]
[1773239517399,0.1259103,70620.0,70605.0,1e-08]
[1773239517556,0.17770823,70619.0,70605.0,1e-08]
[1773239517759,0.17770822,70621.0,70605.0,1e-08]
[1773239517979,0.00148,70620.0,70605.0,1e-08]
[1773239518372,0.1273903,70620.0,70605.0,1e-08]
[1773239518571,0.07080247,70619.0,70605.0,1e-08]
[1773239519041,0.00148,70618.0,70605.0,1e-08]
[1773239519347,0.07080247,70619.0,70605.0,1e-08]
[1773239519502,0.00148,70617.0,70605.0,1e-08]
[1773239520518,0.001,70618.0,70605.0,1e-08]
[1773239520519,0.07080648,70615.0,70605.0,1e-08]
[1773239520872,0.08358065,70613.0,70597.0,1e-08]
[1773239521079,0.1259103,70610.0,70588.0,1e-08]
[1773239521279,0.1259103,70600.0,70588.0,1e-08]
[1773239521484,0.07080648,70615.0,70589.0,0.08601013]
[1773239521729,0.00148,70614.0,70589.0,0.08601013]
[1773239522483,0.0708135,70608.0,70588.0,1e-08]
[1773239522725,0.08358065,70606.0,70588.0,1e-08]
[1773239523281,0.08358065,70606.0,70586.0,1e-08]
[1773239523484,0.0708135,70608.0,70586.0,1e-08]
[1773239523736,0.00148,70605.0,70586.0,1e-08]
[1773239524338,0.00052,70605.0,70586.0,1e-08]
[1773239524740,0.07081751,70604.0,70586.0,1e-08]
[1773239525508,0.07081751,70604.0,70570.0,0.08601013]
[1773239525737,0.07081751,70604.0,70567.0,0.07105364]
[1773239525738,0.1259103,70590.0,70567.0,0.0002]
[1773239525937,0.19452957,70581.0,70549.0,0.64006534]
[1773239526137,0.19452957,70581.0,70541.0,0.31489284]
[1773239526138,0.1259103,70553.0,70541.0,0.31489284]
[1773239526264,0.00148,70552.0,70541.0,0.03608899]
[1773239526465,0.1259103,70570.0,70537.0,0.36126149]
[1773239526665,0.07085364,70568.0,70537.0,0.36126149]
[1773239526858,0.08358065,70567.0,70528.0,0.07109334]
[1773239527053,0.1259103,70560.0,70528.0,0.0002]
[1773239527286,0.1259103,70550.0,70528.0,0.0002]
[1773239527478,0.00148,70549.0,70528.0,0.0002]
[1773239527681,0.00148,70548.0,70528.0,0.0002]
[1773239527896,0.08358065,70564.0,70529.0,0.08213226]
[1773239528239,0.07085364,70570.0,70532.0,0.08601013]
[1773239528811,0.00148,70567.0,70534.0,0.07088779]
[1773239529018,0.00148,70567.0,70535.0,0.08601013]
[1773239529251,0.00148,70566.0,70555.0,0.0002]
[1773239529666,0.07085364,70570.0,70555.0,0.0002]
[1773239529867,0.07084991,70572.0,70555.0,0.0002]
[1773239529868,0.00148,70565.0,70555.0,0.0002]
[1773239530265,0.03508929,70577.0,70555.0,0.0002]
[1773239530266,0.07083658,70585.0,70555.0,0.0002]
[1773239530491,0.00148,70584.0,70555.0,0.0002]
[1773239530657,0.00148,70583.0,70555.0,0.0002]
[1773239530872,0.07083959,70582.0,70557.0,0.08601013]
[1773239531088,0.00148,70581.0,70557.0,0.08601013]
[1773239532053,0.00148,70581.0,70555.0,0.0002]
[1773239532255,0.00148,70581.0,70555.0,0.07086646]
[1773239532463,0.1259103,70570.0,70532.0,0.0708898]
[1773239532710,0.00148,70569.0,70533.0,0.08601013]
[1773239532858,0.07085364,70568.0,70534.0,0.07088779]
[1773239533064,0.00148,70567.0,70535.0,0.08601013]
[1773239533487,0.1259103,70560.0,70531.0,0.43215188]
[1773239533705,0.07085364,70568.0,70531.0,0.43215188]
[1773239533706,0.00148,70559.0,70531.0,0.432152]
[1773239533885,0.00148,70558.0,70531.0,0.432152]
[1773239534091,0.15443429,70568.0,70531.0,0.36126149]
[1773239534374,0.25510065,70567.0,70531.0,0.43215205]
[1773239534577,0.08358065,70567.0,70531.0,0.43215147]
[1773239534796,0.17152,70566.0,70531.0,0.5181616]
[1773239535151,0.07085665,70565.0,70531.0,0.43215189]
[1773239535689,0.08358065,70564.0,70531.0,0.07189066]
[1773239536207,0.1493321,70559.0,70529.0,0.01124]
[1773239536417,0.1259103,70550.0,70529.0,0.01124]
[1773239536821,0.00130111,70549.0,70535.0,0.0002]
[1773239537139,0.00148,70548.0,70535.0,0.0002]
[1773239537348,0.00148,70548.0,70529.0,0.01124]
[1773239537965,0.00148,70547.0,70529.0,0.01124]
[1773239538562,0.00148,70546.0,70529.0,0.01124]
[1773239538760,0.20519485,70552.0,70529.0,0.01124]
[1773239538761,0.03511485,70552.0,70529.0,0.01124]
[1773239538965,0.07087775,70544.0,70529.0,0.01124]
[1773239539667,0.00148,70543.0,70529.0,0.01124]
[1773239540356,0.00148,70543.0,70520.0,0.000275]
[1773239540357,0.1259103,70540.0,70520.0,0.000275]
[1773239540958,0.07088277,70539.0,70520.0,0.000275]
[1773239541166,0.07088277,70539.0,70521.0,0.07090086]
[1773239541364,0.00148,70538.0,70520.0,0.000275]
[1773239541554,0.14080998,70537.0,70520.0,0.000275]
[1773239541766,0.14080998,70536.0,70520.0,0.000275]
[1773239541981,0.14080998,70535.0,70520.0,0.000275]
[1773239542183,0.14228998,70538.0,70520.0,0.000275]
[1773239542756,0.00148,70538.0,70513.0,0.0002]
[1773239542929,0.29038735,70539.0,70513.0,0.07110872]
[1773239543130,0.14228998,70538.0,70513.0,0.07110872]
[1773239543333,0.14228998,70538.0,70506.0,0.07091547]
[1773239543334,0.00148,70537.0,70496.0,0.07803633]
[1773239543538,0.07088277,70539.0,70496.0,0.07951633]
[1773239543750,0.00148,70538.0,70502.0,0.07803633]
[1773239543904,0.20376457,70562.0,70511.0,0.07803633]
[1773239544108,0.1259103,70570.0,70523.0,0.07803633]
[1773239544109,0.14013881,70561.0,70523.0,0.07803633]
[1773239544331,0.00148,70560.0,70525.0,0.07803633]
[1773239544555,0.00148,70564.0,70541.0,0.07803633]
[1773239544753,0.00148,70564.0,70531.0,0.3452687]
[1773239544754,0.00148,70564.0,70543.0,0.07803633]
[1773239544958,0.00148,70564.0,70531.0,0.3452687]
[1773239544959,0.00148,70564.0,70546.0,0.07087574]
[1773239545158,0.00148,70564.0,70546.0,0.14891207]
[1773239545805,0.44379386,70586.0,70547.0,0.07803633]
[1773239545806,0.07084059,70583.0,70547.0,0.07803633]
[1773239545971,0.00148,70582.0,70547.0,0.07803633]
[1773239546274,0.00148,70581.0,70547.0,0.07803633]
[1773239546675,0.00148,70580.0,70547.0,0.07803633]
[1773239546874,0.00148,70579.0,70547.0,0.07803633]
[1773239547100,0.07084059,70583.0,70548.0,0.07087373]
[1773239547302,0.00148,70582.0,70549.0,0.07803633]
[1773239547823,0.07083758,70584.0,70549.0,0.07803633]
[1773239548031,0.00148,70581.0,70549.0,0.07803633]
[1773239548213,0.12656283,70580.0,70549.0,0.07803633]
[1773239548389,0.12656283,70560.0,70531.0,0.41615943]
[1773239548592,0.12656283,70550.0,70531.0,0.41085592]
[1773239548815,0.0786946,70565.0,70531.0,0.41085592]
[1773239549174,0.07085866,70563.0,70531.0,0.41085592]
[1773239549378,0.07085866,70563.0,70532.0,0.07803633]
[1773239549379,0.00148,70562.0,70532.0,0.07803633]
[1773239549585,0.00148,70561.0,70534.0,0.07803633]
[1773239549810,0.00148,70561.0,70549.0,0.001]
[1773239550213,0.0708446,70578.0,70549.0,0.001]
[1773239550414,0.00148,70577.0,70549.0,0.001]
[1773239550615,0.0786946,70576.0,70549.0,0.001]
[1773239550839,0.00148,70577.0,70535.0,0.07803633]
[1773239550840,0.0786946,70569.0,70535.0,0.07803633]
[1773239551147,0.00148,70568.0,70535.0,0.07803633]
[1773239551375,0.07233464,70567.0,70537.0,0.07803633]
[1773239552738,0.07085187,70570.0,70537.0,0.07803633]
[1773239552939,0.00148,70569.0,70537.0,0.07803633]
[1773239553245,0.07085364,70568.0,70538.0,0.07088377]
[1773239553454,0.07085364,70568.0,70538.0,0.1489201]
[1773239554057,0.12656283,70560.0,70535.0,0.0002]
[1773239554327,0.00148,70559.0,70535.0,0.0002]
[1773239554813,0.0786946,70549.0,70527.0,0.0002]
[1773239555287,0.07039473,70547.0,70527.0,0.0002]
[1773239556227,0.07039473,70547.0,70527.0,0.07109425]
[1773239556427,0.00148,70546.0,70527.0,0.0002]
[1773239556631,0.07039473,70547.0,70527.0,0.07109475]
[1773239556832,0.0708687,70553.0,70527.0,0.07109475]
[1773239557034,0.00148,70552.0,70527.0,0.07109471]
[1773239557236,0.001,70547.0,70527.0,0.07109471]
[1773239557439,0.07235574,70546.0,70527.0,0.0002]
[1773239557847,0.12656283,70540.0,70527.0,0.0002]
[1773239558148,0.12656283,70540.0,70522.0,0.0002]
[1773239558412,0.12656283,70530.0,70504.0,0.07091777]
[1773239558620,0.00148,70529.0,70491.0,0.07951633]
[1773239558752,0.12656283,70530.0,70503.0,0.07091839]
[1773239559087,0.00148,70529.0,70512.0,0.07090964]
[1773239559288,0.0786946,70539.0,70510.0,0.07091186]
[1773239559516,0.0786946,70539.0,70507.0,0.07111485]
[1773239559517,0.07236377,70538.0,70511.0,0.07090995]
[1773239559705,0.001,70530.0,70514.0,0.07110716]
[1773239559856,0.07088377,70540.0,70514.0,0.07110716]
[1773239560061,0.00148,70539.0,70515.0,0.08303992]
[1773239560404,0.07087272,70549.0,70515.0,0.08451992]
[1773239560599,0.001,70539.0,70515.0,0.08451992]
[1773239560772,0.00148,70538.0,70515.0,0.08451992]
[1773239560974,0.001,70539.0,70515.0,0.08451992]
[1773239561182,0.00148,70537.0,70515.0,0.08451992]
[1773239561599,0.00148,70537.0,70516.0,0.15394581]
[1773239561798,0.001,70539.0,70517.0,0.08303992]
[1773239561972,0.0708757,70547.0,70517.0,0.08303992]
[1773239562174,0.00022001,70549.0,70517.0,0.08303992]
[1773239562615,0.00148,70548.0,70517.0,0.08303992]
[1773239562811,0.00148,70547.0,70517.0,0.08303992]
[1773239563021,0.00022001,70549.0,70517.0,0.08303992]
[1773239563226,0.00148,70548.0,70517.0,0.08403992]
[1773239563603,0.00148,70547.0,70519.0,0.08303992]
[1773239563938,0.00022001,70549.0,70519.0,0.08303992]
[1773239564294,0.00144,70548.0,70519.0,0.08303992]
[1773239564880,0.00022001,70549.0,70519.0,0.08303992]
[1773239565331,0.00022001,70557.0,70521.0,0.08303992]
[1773239565491,0.07085884,70563.0,70532.0,0.3418713]
[1773239565690,0.07107803,70564.0,70532.0,0.3418713]
[1773239565691,0.00144,70562.0,70533.0,0.08451992]
[1773239565890,0.00022001,70564.0,70533.0,0.08451992]
[1773239566213,0.17941175,70586.0,70541.0,0.08303992]
[1773239566414,0.00144,70578.0,70543.0,0.08303992]
[1773239566879,0.07083809,70584.0,70543.0,0.08303992]
[1773239567085,0.00144,70585.0,70543.0,0.08303992]
[1773239567437,0.07083982,70582.0,70543.0,0.08303992]
[1773239567638,0.07083982,70582.0,70545.0,0.08303992]
[1773239567840,0.00144,70585.0,70545.0,0.08303992]
[1773239567989,0.00144,70580.0,70545.0,0.08303992]
[1773239568212,0.08207561,70586.0,70545.0,0.08303992]
[1773239568410,0.00144,70580.0,70545.0,0.08303992]
[1773239569041,0.07228159,70580.0,70545.0,0.08303992]
[1773239569259,0.00144,70580.0,70545.0,0.08303992]
[1773239569613,0.00022001,70581.0,70550.0,0.12656283]
[1773239569811,0.00144,70580.0,70551.0,0.08328528]
[1773239570466,0.00022001,70581.0,70551.0,0.08328528]
[1773239570787,0.16817175,70585.0,70551.0,0.08328528]
[1773239570929,0.16961175,70585.0,70551.0,0.08328528]
[1773239571124,0.16817175,70584.0,70551.0,0.08328528]
[1773239571369,0.00144,70585.0,70551.0,0.08328528]
[1773239571569,0.00144,70585.0,70553.0,0.08180528]
[1773239572004,0.17941175,70586.0,70553.0,0.08180528]
[1773239572005,0.00022001,70581.0,70553.0,0.08180528]
[1773239572378,0.00022001,70589.0,70562.0,0.08180528]
[1773239572576,0.00022001,70589.0,70561.0,0.32574513]
[1773239572577,0.00144,70601.0,70571.0,0.08180528]
[1773239572784,0.00144,70601.0,70573.0,0.08180528]
[1773239572986,0.00144,70605.0,70573.0,0.08180528]
[1773239573134,0.00148,70604.0,70573.0,0.08180528]
[1773239573537,0.00148,70604.0,70574.0,0.07084762]
[1773239573846,0.07081085,70611.0,70575.0,0.08180528]
[1773239574414,0.00022001,70614.0,70581.0,0.08180528]
[1773239574595,0.00022001,70614.0,70583.0,0.08180528]
[1773239575318,0.00022001,70622.0,70592.0,0.08180528]
[1773239575517,0.07102023,70622.0,70594.0,0.08180528]
[1773239575694,0.00148,70621.0,70595.0,0.07082654]
[1773239576021,0.00022001,70622.0,70596.0,0.08180528]
[1773239576228,0.00022001,70629.0,70601.0,0.08180528]
[1773239576424,0.00148,70635.0,70603.0,0.08180528]
[1773239577019,0.20924264,70635.0,70603.0,0.08180528]
[1773239577221,0.20924264,70633.0,70604.0,0.00148]
[1773239577387,0.00148,70634.0,70604.0,0.00148]
[1773239577388,0.20924264,70632.0,70604.0,0.00148]
[1773239577591,0.07079044,70631.0,70605.0,0.07081651]
[1773239578240,0.07079044,70633.0,70605.0,0.07081651]
[1773239578689,0.00148,70632.0,70605.0,0.07081651]
[1773239579447,0.00148,70631.0,70606.0,0.08180528]
[1773239579652,0.00148,70631.0,70607.0,0.0708145]
[1773239579853,0.07227077,70631.0,70607.0,0.07066543]
[1773239580006,0.00148,70631.0,70608.0,0.00148]
[1773239580209,0.07227073,70631.0,70608.0,0.00148]
[1773239580828,0.07227061,70631.0,70608.0,0.00148]
[1773239581246,0.00148,70631.0,70608.0,0.00148]
[1773239581561,0.00148,70630.0,70608.0,0.00148]
[1773239581766,0.00022001,70633.0,70611.0,0.08180528]
[1773239582427,0.00022001,70633.0,70607.0,0.07066543]
[1773239582428,0.07100881,70633.0,70582.0,0.16212]
[1773239582595,0.12656283,70610.0,70582.0,0.00148]
[1773239582819,0.076467,70615.0,70576.0,0.07084549]
[1773239582962,0.34634475,70619.0,70583.0,0.08180528]
[1773239583160,0.00148,70618.0,70583.0,0.08180528]
[1773239583566,0.00148,70618.0,70576.0,0.07232549]
[1773239583567,0.076467,70609.0,70576.0,0.07232549]
[1773239583763,0.1472805,70608.0,70576.0,0.07232549]
[1773239583961,0.1472805,70608.0,70576.0,0.07084549]
[1773239584188,0.0708135,70608.0,70576.0,0.07232549]
[1773239584391,0.00148,70607.0,70576.0,0.07232549]
[1773239584602,0.0708135,70608.0,70576.0,0.07232549]
[1773239584838,0.00148,70607.0,70576.0,0.07232549]
[1773239585335,0.076467,70606.0,70576.0,0.07084549]
[1773239585541,0.0708135,70608.0,70576.0,0.07084549]
[1773239585770,0.07081751,70604.0,70576.0,0.07084549]
[1773239585963,0.07081751,70604.0,70573.0,0.07084561]
[1773239585964,0.076467,70599.0,70573.0,0.07084661]
[1773239586165,0.07081751,70604.0,70573.0,0.07084661]
[1773239586368,0.076467,70603.0,70571.0,0.0708506]
[1773239586744,0.076467,70603.0,70571.0,0.0707756]
[1773239586985,0.12656283,70600.0,70567.0,0.00148]
[1773239587182,0.076467,70599.0,70573.0,0.000125]
[1773239587386,0.076467,70599.0,70565.0,0.0002]
[1773239587585,0.076467,70599.0,70565.0,0.000125]
[1773239587795,0.07082353,70598.0,70565.0,5e-05]
[1773239587984,0.076467,70588.0,70565.0,5e-05]
[1773239588182,0.00148,70587.0,70565.0,5e-05]
[1773239588381,0.34634475,70589.0,70565.0,5e-05]
[1773239588587,0.00148,70588.0,70565.0,5e-05]
[1773239589083,0.00148,70587.0,70565.0,5e-05]
[1773239589423,0.07082353,70598.0,70566.0,0.08180528]
[1773239589621,0.00148,70597.0,70566.0,0.08180528]
[1773239590242,0.07082554,70596.0,70567.0,0.2106653]
[1773239590442,0.07082554,70596.0,70568.0,0.00148]
[1773239590643,0.076467,70595.0,70567.0,0.07085464]
[1773239591047,0.00148,70594.0,70567.0,0.07085464]
[1773239591770,0.00148,70593.0,70567.0,0.07085464]
[1773239592155,0.07082554,70596.0,70567.0,0.07085464]
[1773239592369,0.11334286,70622.0,70570.0,0.12656283]
[1773239592720,0.07668701,70633.0,70597.0,0.11194012]
[1773239592721,0.07078944,70632.0,70597.0,0.11194012]
[1773239592900,0.07078944,70632.0,70580.0,0.12656283]
[1773239592901,0.00148,70631.0,70602.0,0.11194012]
[1773239593137,0.00148,70630.0,70603.0,0.14138099]
[1773239593371,0.00148,70630.0,70605.0,0.08180528]
[1773239593545,0.00148,70630.0,70606.0,0.13990099]
[1773239593768,0.00148,70630.0,70607.0,0.13990099]
[1773239593904,0.07100852,70633.0,70608.0,0.13982599]
[1773239594108,0.00148,70632.0,70605.0,0.08165528]
[1773239594312,0.00148,70632.0,70591.0,0.21010511]
[1773239594313,0.07079044,70631.0,70601.0,0.07082052]
[1773239594533,0.12656283,70620.0,70591.0,0.11194012]
[1773239594706,0.12656283,70611.0,70584.0,0.07083741]
[1773239594906,0.00148,70610.0,70584.0,0.07083741]
[1773239595107,0.076467,70617.0,70584.0,0.07083741]
[1773239595367,0.00148,70616.0,70584.0,0.07083741]
[1773239596125,0.00148,70615.0,70584.0,0.07083741]
[1773239596325,0.34634475,70619.0,70582.0,0.07083758]
[1773239596326,0.00148,70614.0,70585.0,0.08180528]
[1773239596562,0.41714822,70619.0,70585.0,0.08180528]
[1773239596867,0.070801,70621.0,70586.0,0.00148]
[1773239597072,0.070801,70621.0,70587.0,0.08180528]
[1773239597321,0.00148,70620.0,70587.0,0.08180528]
[1773239597805,0.070801,70621.0,70587.0,0.08180528]
[1773239598012,0.00022001,70633.0,70587.0,0.08180528]
[1773239598250,0.07226944,70632.0,70591.0,0.08180528]
[1773239598421,0.07226944,70632.0,70593.0,0.08180528]
[1773239598749,0.00148,70631.0,70595.0,0.08180528]
[1773239599158,0.00148,70631.0,70596.0,0.00148]
[1773239599734,0.00148,70631.0,70597.0,0.00148]
[1773239599910,0.00148,70630.0,70597.0,0.00148]
[1773239600092,0.07078944,70632.0,70597.0,0.00148]
[1773239600093,0.00148,70629.0,70597.0,0.00148]
[1773239600299,0.07079345,70628.0,70598.0,0.07082353]
[1773239600841,0.00148,70627.0,70598.0,0.07082353]
[1773239601055,0.07079291,70629.0,70598.0,0.07082353]
[1773239601281,0.00148,70628.0,70599.0,0.08137116]
[1773239601604,0.07079291,70629.0,70600.0,0.00148]
[1773239602029,0.00148,70628.0,70600.0,0.00148]
[1773239602258,0.07079445,70627.0,70601.0,0.07082052]
[1773239602508,0.00148,70626.0,70601.0,0.07082052]
[1773239603407,0.12656283,70611.0,70587.0,0.0002]
[1773239603605,0.12656283,70600.0,70579.0,0.0710423]
[1773239603765,0.00148,70599.0,70579.0,0.07104242]
[1773239603968,0.07864987,70609.0,70579.0,0.07104242]
[1773239604169,0.00148,70608.0,70579.0,0.07104242]
[1773239604376,0.07081551,70606.0,70579.0,0.07104242]
[1773239604725,0.00148,70605.0,70580.0,0.08285116]
[1773239604867,0.07081551,70606.0,70580.0,0.08285116]
[1773239604868,0.001,70600.0,70580.0,0.08285116]
[1773239605424,0.00148,70599.0,70579.0,0.07104163]
[1773239605657,0.001,70600.0,70580.0,0.08129616]
[1773239605792,0.001,70600.0,70580.0,0.08122116]
[1773239606012,0.00148,70600.0,70581.0,0.13928014]
[1773239606211,0.07760221,70626.0,70579.0,0.07089163]
[1773239606409,0.07760221,70617.0,70581.0,0.07084059]
[1773239606640,0.12656283,70610.0,70581.0,0.07084059]
[1773239606795,0.07760221,70617.0,70581.0,0.07232059]
[1773239606796,0.00148,70609.0,70581.0,0.07232059]
[1773239607007,0.00148,70609.0,70581.0,0.07084059]
[1773239607216,0.12656283,70610.0,70581.0,0.07084059]
[1773239607452,0.00148,70609.0,70581.0,0.07084059]
[1773239607838,0.00148,70609.0,70583.0,0.16722691]
[1773239608250,0.07760221,70617.0,70582.0,0.16722691]
[1773239608450,0.07760221,70617.0,70584.0,0.07083758]
[1773239608451,0.07228548,70616.0,70584.0,0.07083758]
[1773239608953,0.07643725,70615.0,70584.0,0.07083758]
[1773239609155,0.07080548,70616.0,70584.0,0.23806449]
[1773239609358,0.07080548,70617.0,70586.0,0.08137116]
[1773239609654,0.00148,70615.0,70587.0,0.08137116]
[1773239610229,0.00148,70615.0,70588.0,0.08137116]
[1773239610484,0.07080748,70614.0,70585.0,0.16722691]
[1773239610660,0.07080748,70614.0,70586.0,0.07231507]
[1773239611867,0.07080748,70614.0,70586.0,0.00148]
[1773239612041,0.07528247,70613.0,70585.0,0.07083562]
[1773239612295,0.38957383,70619.0,70586.0,0.08285116]
[1773239612480,0.07080448,70617.0,70588.0,0.08137116]
[1773239612931,0.07080448,70617.0,70587.0,0.07083457]
[1773239613095,0.07080448,70617.0,70585.0,0.07083457]
[1773239613305,0.07080448,70617.0,70586.0,0.08137116]
[1773239613306,0.07490228,70616.0,70586.0,0.08137116]
[1773239613479,0.07080448,70617.0,70586.0,0.08137116]
[1773239613480,0.00148,70615.0,70586.0,0.08137116]
[1773239613933,0.00148,70614.0,70586.0,0.08137116]
[1773239614251,0.00148,70613.0,70587.0,0.00148]
[1773239614554,0.07180448,70617.0,70590.0,0.08137116]
[1773239614705,0.00148,70612.0,70590.0,0.08137116]
[1773239615822,0.001,70617.0,70590.0,0.08137116]
[1773239616021,0.00148,70615.0,70590.0,0.08137116]
[1773239616358,0.00148,70615.0,70591.0,0.00148]
[1773239616503,0.12644582,70610.0,70584.0,0.16742691]
[1773239616692,0.12644582,70610.0,70585.0,0.07076158]
[1773239616888,0.00148,70609.0,70585.0,0.07068658]
[1773239617099,0.00148,70608.0,70586.0,0.08129616]
[1773239617308,0.00148,70610.0,70587.0,0.1673573]
[1773239617507,0.07080748,70614.0,70588.0,0.08137116]
[1773239617729,0.00148,70613.0,70588.0,0.08137116]
[1773239617913,0.07080748,70614.0,70588.0,0.08137116]
[1773239618111,0.00148,70612.0,70590.0,0.08137116]
[1773239618317,0.00148,70613.0,70592.0,0.08137116]
[1773239618717,0.00148,70613.0,70594.0,0.08137116]
[1773239618936,0.0722888,70613.0,70594.0,0.08137116]
[1773239619402,0.0722888,70613.0,70590.0,0.07082855]
[1773239619403,0.12644582,70602.0,70579.0,5e-05]
[1773239619560,0.15312189,70587.0,70544.0,0.36151131]
[1773239619799,0.12644582,70570.0,70535.0,0.0002]
[1773239620017,0.00148,70569.0,70536.0,0.00148]
[1773239620169,0.00148,70569.0,70540.0,0.07088174]
[1773239620365,0.00148,70568.0,70543.0,0.07107861]
[1773239620578,0.00148,70567.0,70543.0,0.0002]
[1773239620771,0.00148,70566.0,70543.0,0.0002]
[1773239620988,0.07085264,70569.0,70543.0,0.0002]
[1773239621623,0.00148,70568.0,70543.0,0.0002]
[1773239622030,0.00148,70568.0,70543.0,0.07107872]
[1773239622208,0.00148,70567.0,70543.0,0.07107872]